Cogmind - Beta 13 @@@ ROGUE MODE // 2024.06.25 @ 07:59:38 Player: tsintsir Result: Destroyed by Y-45 Defender with Heavy Assault Rifle Performance ------------- Evolutions (1) 500 Regions Visited (3) 600 Robots Destroyed (47) 235 Value Destroyed (1254) 1254 Prototype IDs (3) 60 Alien Tech Used (0) 0 Bonus (-90) -90 TOTAL SCORE: 2559 Bonus ------- High Alert Combat Kills 11 Friendly Fire -101 Cogmind --------- Core Integrity 0/400 Matter 300/300 Energy 226/265 System Corruption 0% Temperature Cool (9) Movement Walking (190) Ox1 Location -9/Storage Parts ------- > --- POWER (1) -------- Improved Ion Engine > --- PROPULSION (4) --- Improved Aluminum Leg > --- UTILITY (2) ------ Small Storage Unit Melee Analysis Suite > --- WEAPON (2) ------- Mace Katana > --- INVENTORY (8) ---- Improved Ion Engine Terrain Scanner Light Armor Plating Heavy Assault Rifle Peak State ------------ > --- POWER ------------ Reinforced Ion Engine > --- PROPULSION ------- Aluminum Leg Improved Aluminum Leg Improved Aluminum Leg > --- UTILITY ---------- Small Storage Unit Melee Analysis Suite > --- WEAPON ----------- Improved EM Shotgun Katana > --- INVENTORY -------- Improved Ion Engine Improved Ion Engine Terrain Scanner Heavy Assault Rifle Heavy Assault Rifle Mace [Rating: 18] Favorites ----------- Power Improved Ion Engine Engine Improved Ion Engine Propulsion Aluminum Leg Leg Aluminum Leg Utility Small Storage Unit Device Terrain Scanner Storage Small Storage Unit Processor Melee Analysis Suite Protection Hardened Medium Armor Plating Weapon Beam Rifle Energy Gun Beam Rifle Ballistic Gun Heavy Assault Rifle Ballistic Cannon Light Cannon Launcher Grenade Launcher Impact Weapon Mace Slashing Weapon Katana Build | -11 -10 -9 -9 ------- Run | Yrd Mat Mat Sto Slots Evolved 2 | . . 2 . Power . | . . . . Propulsion 2 | . . 2 . Utility . | . . . . Weapon . | . . . . Parts Attached 51 | 6 6 7 32 Power 6 | 1 . 1 4 Engine 6 | 1 . 1 4 Core . | . . . . Reactor . | . . . . Propulsion 14 | 2 2 3 7 Treads . | . . . . Leg 14 | 2 2 3 7 Wheel . | . . . . Hover . | . . . . Flight . | . . . . Utility 9 | 1 2 1 5 Device 3 | . 2 . 1 Storage 3 | 1 . . 2 Processor 1 | . . . 1 Hackware . | . . . . Protection 2 | . . 1 1 Artifact . | . . . . Weapon 22 | 2 2 2 16 Energy Gun 8 | . . 2 6 Energy Cannon . | . . . . Ballistic Gun 6 | 2 . . 4 Ballistic Cannon 1 | . 1 . . Launcher 1 | . 1 . . Special Weapon . | . . . . Impact Weapon 2 | . . . 2 Slashing Weapon 4 | . . . 4 Piercing Weapon . | . . . . Special Melee Weapon . | . . . . Unidentified Prototypes 1 | . . . 1 Parts Lost 17 | . 1 2 14 Power 2 | . . . 2 Propulsion 9 | . . 1 8 Utility 2 | . 1 . 1 Weapon 4 | . . 1 3 Highest Loss Streak 5 | . 1 1 5 To Critical Strikes . | . . . . Average Slot Usage (%) 88 | . 89 90 87 Engine 11 | . 14 11 10 Leg 33 | . 26 36 34 Device 1 | . 6 . . Storage 10 | . 14 11 10 Processor 3 | . . . 5 Protection 4 | . . 10 4 Energy Gun 9 | . . 14 10 Ballistic Gun 5 | . 3 . 7 Ballistic Cannon 2 | . 12 4 . Launcher 2 | . 12 1 . Impact Weapon 1 | . . . 1 Slashing Weapon 1 | . . . 2 Naked Turns . | . . . . Heaviest Build 27 | 12 17 24 27 Greatest Support 46 | 20 20 40 46 Greatest Overweight (x) 2 | . . 1 2 Average Overweight (x) . | . . . . Largest Inventory Capacity 8 | 8 8 8 8 Average Capacity 7 | 7 8 8 7 Most Carried 8 | 3 7 8 8 Average Carried 5 | 1 4 6 5 Final Capacity 8 | 8 8 8 8 Final Carried 6 | 2 6 6 4 Class Distribution -------------------- 65% | Scavenger-Mutant 26% | Mutant 8% | Scavenger-Gladiator Dominant Class ---------------- Mutant | -10/Materials Mutant | -9/Materials Scavenger-Mutant | -9/Storage Resources | -11 -10 -9 -9 ----------- Run | Yrd Mat Mat Sto Matter Collected 1300 | 258 136 251 655 Remotely . | . . . . Salvage Created 1871 | 70 158 239 1404 Parts 116 | . 14 18 84 Haulers Intercepted 1 | . . . 1 Recyclers Shooed 5 | . . . 5 Parts Field Recycled . | . . . . Retrieved Matter . | . . . . Parts Self-Destructed . | . . . . Prevented . | . . . . Kills | -11 -10 -9 -9 ------- Run | Yrd Mat Mat Sto Combat Hostiles Destroyed 36 | . 6 5 25 Melee 3 | . . . 3 Guns 24 | . . 4 20 Cannons 3 | . 2 1 . AOE 6 | . 4 . 2 Classes Destroyed 10 | 1 3 2 4 Worker 1 | . . . 1 Builder 1 | . 1 . . Hauler 1 | . . . 1 Recycler 7 | 1 1 . 5 Watcher 1 | . . 1 . Swarmer 10 | . 3 . 7 Grunt 11 | . 3 3 5 Brawler 1 | . . . 1 Duelist 1 | . . . 1 Sentry 13 | . . 2 11 Best Kill Streak 8 | 1 6 3 8 Combat Bots Only 6 | . 3 3 6 Max Kills in Single Turn 4 | 1 4 1 2 Gunslinging 1 | . . . 1 Exploded 3 | . 3 . 1 Melee 1 | . . . 1 Uniques/NPCs Destroyed . | . . . . Combat | -11 -10 -9 -9 -------- Run | Yrd Mat Mat Sto Hostile Shots Fired 263 | . 33 49 181 Missed 70 | . 12 18 40 Damage Taken 2662 | . 264 424 1974 Core 449 | . 45 70 334 Absorbed by Shields . | . . . . Regen/Repaired (Parts) 333 | . 57 . 276 Core Remaining (%) 91 | 100 82 . . Volleys Fired 167 | 4 29 28 106 Largest 2 | 2 2 2 2 Hottest 112 | 40 65 96 112 Shots Fired 275 | 8 37 44 186 Gun 223 | 8 . 29 186 Cannon 40 | . 28 12 . Launcher 12 | . 9 3 . Special . | . . . . Kinetic 122 | 8 28 12 74 Thermal 106 | . . 29 77 Explosive 12 | . 9 3 . Electromagnetic 35 | . . . 35 Robot Hit Streak 14 | 4 3 5 14 Robot Miss Streak 7 | 1 5 4 7 Penetration Max . | . . . . Secondary Targets 3 | . . . 3 Max Gunslinging Chain 1 | . . . 1 Shots Hit Robots 174 | 7 15 23 129 Core Hits 77 | 2 9 11 55 Critical Kills . | . . . . Critical Parts Destroyed 1 | . . . 1 Critical Strikes 7 | . 1 1 5 Burn 2 | . . 1 1 Destroy 1 | . . . 1 Blast 1 | . 1 . . Smash 1 | . . . 1 Sever 2 | . . . 2 Melee Attacks 13 | . . . 13 Impact 1 | . . . 1 Slashing 12 | . . . 12 Piercing . | . . . . Sneak Attacks . | . . . . Combat Hostiles . | . . . . Follow-up Attacks 1 | . . . 1 Damage Inflicted 3399 | 51 685 374 2289 Guns 2017 | 51 . 205 1761 Cannons 326 | . 191 135 . Explosions 713 | . 494 34 185 Melee 343 | . . . 343 Ramming . | . . . . Kinetic 1087 | 51 191 135 710 Thermal 1008 | . . 205 803 Explosive 528 | . 494 34 . Electromagnetic 433 | . . . 433 Impact 15 | . . . 15 Slashing 328 | . . . 328 Piercing . | . . . . Highest Corruption . | . . . . Average Corruption . | . . . . Corruption Purged . | . . . . Corruption Blocked . | . . . . Overload Shots . | . . . . Overflow Damage 56 | . 45 . 11 Projectiles 5 | . 5 . . Explosions 51 | . 40 . 11 Melee . | . . . . Knockbacks 2 | . 2 . . Impact . | . . . . Kinetic 2 | . 2 . . Secondary . | . . . . Self-Inflicted Damage 151 | . 24 40 87 Shots 5 | . 2 1 2 Rammed . | . . . . Targets Rammed . | . . . . Kicked . | . . . . Crushed . | . . . . Highest Temperature 411 | . 36 296 411 Average Temperature 147 | . 14 101 173 Received Heat Transfer 918 | . 102 192 624 Effects 11 | . . . 11 Shutdowns 1 | . . . 1 Energy Bleed 1 | . . . 1 Interference 3 | . . . 3 Matter Decay 3 | . . . 3 Short Circuit 1 | . . . 1 Damage (major) 2 | . . . 2 Siege Activations . | . . . . Robots Corrupted . | . . . . Combat Hostiles . | . . . . Parts Fried . | . . . . Impact Corruptions . | . . . . Robots Melted . | . . . . Combat Hostiles . | . . . . Parts Melted 3 | . . 1 2 Heat Transferred 2361 | . . 570 1791 Parts Sabotaged . | . . . . Parts Stolen . | . . . . Parts Stripped . | . . . . Power Chain Reactions 3 | . . . 3 Alert | -11 -10 -9 -9 ------- Run | Yrd Mat Mat Sto Peak Influence 434 | 5 252 319 434 Initial 134 | . 3 105 134 Average 220 | 1 131 244 244 Maximum Alert Level 2 | . 1 1 2 Low Security (%) 31 | 100 61 35 21 Level 1 67 | . 38 64 76 Level 2 . | . . . 1 Level 3 . | . . . . Level 4 . | . . . . Level 5 . | . . . . High Security . | . . . . Max Security . | . . . . Squads Dispatched 6 | . 1 . 5 Investigation . | . . . . Extermination . | . . . . Reinforcement 2 | . 1 . 1 Assault . | . . . . Garrison 4 | . . . 4 Intercept . | . . . . Searches Triggered . | . . . . Construction Impeded . | . . . . Haulers Reinforced . | . . . . Active Scanning Responses . | . . . . Cargo Convoy Interrupts . | . . . . Stealth | -11 -10 -9 -9 --------- Run | Yrd Mat Mat Sto Distress Signals 6 | . . . 6 Communications Jammed . | . . . . Distress Signals . | . . . . Times Spotted 59 | . 14 8 37 Peak Tracking Total 7 | . 4 3 7 Tactical Retreats 6 | . . . 6 Traps | -11 -10 -9 -9 ------- Run | Yrd Mat Mat Sto Traps Triggered . | . . . . Indirectly . | . . . . Trap Hack Attempts . | . . . . Triggered . | . . . . Disarmed . | . . . . Reprogrammed 4 | . . 4 . Reused . | . . . . Traps Extracted . | . . . . Installed . | . . . . Triggered . | . . . . Machines | -11 -10 -9 -9 ---------- Run | Yrd Mat Mat Sto Machines Disabled 2 | . . 1 1 Max in Single Turn 1 | . . 1 1 Machines Repaired . | . . . . Machines Dismantled . | . . . . Machines Sabotaged . | . . . . Overloaded Fab Kills . | . . . . Hacking | -11 -10 -9 -9 --------- Run | Yrd Mat Mat Sto Machines Accessed 11 | . 3 1 7 Terminals 8 | . 2 1 5 Fabricators . | . . . . Repair Stations 3 | . 1 . 2 Recycling Units . | . . . . Scanalyzers . | . . . . Garrison Access . | . . . . Total Hacks 32 | . 4 3 25 Successful 19 | . 4 1 14 Failed 13 | . . 2 11 Catastrophic 1 | . . . 1 Database Lockouts . | . . . . Manual . | . . . . Terminals 15 | . 2 3 10 Fabricators . | . . . . Repair Stations 17 | . 2 . 15 Recycling Units . | . . . . Scanalyzers . | . . . . Garrison Access . | . . . . Terminal Hacks 7 | . 2 1 4 Prototype ID Bank 1 | . 1 . . Open Door 1 | . . . 1 Locate Traps 1 | . 1 . . Reprogram Traps 1 | . . 1 . Maintenance Status 1 | . . . 1 Registered Components 1 | . . . 1 Zone Layout 1 | . . . 1 Fabricator Hacks . | . . . . Repair Station Hacks 12 | . 2 . 10 Scan Component 7 | . 1 . 6 Repair 5 | . 1 . 4 Recycling Unit Hacks . | . . . . Scanalyzer . | . . . . Garrison Access Hacks . | . . . . Unauthorized Hacks . | . . . . Terminals . | . . . . Fabricators . | . . . . Repair Stations . | . . . . Recycling Units . | . . . . Scanalyzers . | . . . . Garrison Access . | . . . . Data Cores Recovered . | . . . . Used . | . . . . Hacking Detections 8 | . 2 1 5 Full Trace Events . | . . . . Feedback Events . | . . . . Feedback Blocked . | . . . . Robot Schematics Acquired . | . . . . Robots Built . | . . . . Authchips . | . . . . Time . | . . . . Total Robot Build Rating . | . . . . Part Schematics Acquired . | . . . . Parts Built . | . . . . Authchips . | . . . . Time . | . . . . Total Part Build Rating . | . . . . Parts Repaired 5 | . 1 . 4 Time 166 | . 26 . 140 Parts Recycled . | . . . . Recycled Matter . | . . . . Retrieved Matter . | . . . . Retrieved Components . | . . . . Parts Scanalyzed . | . . . . Part Schematics Acquired . | . . . . Parts Damaged . | . . . . Bothacking | -11 -10 -9 -9 ------------ Run | Yrd Mat Mat Sto Used RIF Installer . | . . . . Robots Hacked . | . . . . Non-combat . | . . . . Combat . | . . . . Robot Hacks Applied . | . . . . Relay Couplers Released . | . . . . Fabnet Peak Effective % . | . . . . Robots Rewired . | . . . . Allies Hacked . | . . . . Hacks Repelled . | . . . . Allies | -11 -10 -9 -9 -------- Run | Yrd Mat Mat Sto Total Allies . | . . . . Largest Group . | . . . . Highest-Rated Group . | . . . . Highest-Rated Ally . | . . . . Total Orders 2 | . . . 2 ROAM 1 | . . . 1 EXPLORE 1 | . . . 1 Ally Attacks . | . . . . Total Damage . | . . . . Kills . | . . . . Allies Corrupted . | . . . . Allies Melted . | . . . . Intel | -11 -10 -9 -9 ------- Run | Yrd Mat Mat Sto Robot Analysis Total . | . . . . Derelict Logs Recovered . | . . . . Drone Launches 8 | . . . 8 Drone Recoveries . | . . . . Exploration | -11 -10 -9 -9 ------------- Run | Yrd Mat Mat Sto Turns Passed 2456 | 74 353 356 1673 Spaces Moved 1257 | 45 206 213 793 Core 5 | 5 . . . Treads . | . . . . Legs 1252 | 40 206 213 793 Wheels . | . . . . Hover . | . . . . Flight . | . . . . Fastest Speed 50 | 50 120 120 120 Average Speed 120 | 112 120 121 121 Slowest Speed 260 | 120 120 190 260 Overloaded Moves . | . . . . Propulsion Burnouts . | . . . . Robots Hopped . | . . . . Cave-ins Triggered . | . . . . Exploration Rate (%) 31 | 3 44 19 58 Regions Visited 3 Branch Regions 1 Pre-discovered Areas . | . . . . Known Exits Taken . | . . . . Unknown Exits Taken 3 | 1 1 1 . Scrap Searched . | . . . . Spaces Dug 7 | . . 7 . Terrain Destroyed 89 | . 56 20 13 Melee . | . . . . Projectile . | . . . . AOE 89 | . 56 20 13 Terrain Rammed . | . . . . Walls Destroyed . | . . . . Machines Disabled . | . . . . Actions | -11 -10 -9 -9 --------- Run | Yrd Mat Mat Sto Total 1919 | 62 276 267 1314 Wait 344 | . 26 11 307 Move 1254 | 44 205 212 793 Hop . | . . . . Pick Up 47 | 8 7 5 27 Fast Attach 6 | . . . 6 Attach 45 | 6 6 7 26 Detach 19 | . 3 3 13 Swap . | . . . . Drop 19 | . . 1 18 Fire 167 | 4 29 28 106 Melee 12 | . . . 12 Ram . | . . . . Kick . | . . . . Crush . | . . . . Escape Stasis . | . . . . Rewire 3 | . . . 3 Trap . | . . . . Miscellaneous 3 | . . . 3 Route ------- -11/Scrapyard -10/Materials (discovered 2 exits: *Mat x2) -9/Materials -9/Storage (discovered 1 exit: [Mat]) History --------- Turn | Location | Event 2 | -11/Scrapyard | Met Revision 17 5 | -11/Scrapyard | Discovered new exit (range 16) 75 | -11/Scrapyard | Entered Materials 157 | -10/Materials | Discovered new exit (range 9) 290 | -10/Materials | Discovered new exit (range 15) 329 | -10/Materials | Build established: Mutant 392 | -10/Materials | Repaired Aluminum Leg 428 | -10/Materials | Entered another Materials area 428 | -9/Materials | Evolved 2 slots: Propulsion x2 714 | -9/Materials | Discovered new exit (range 11) 784 | -9/Materials | Entered Storage 855 | -9/Storage | Repaired Beam Rifle 895 | -9/Storage | Repaired Hrd. Medium Armor Plating 1086 | -9/Storage | Garrison activated, responded to threat 1094 | -9/Storage | Lost 3 parts (1p2n) 1197 | -9/Storage | Build established: Scavenger-Mutant 1329 | -9/Storage | Murdered 3 allies 1581 | -9/Storage | Core integrity fell below 50% 1896 | -9/Storage | Discovered new exit (range 16) 2102 | -9/Storage | Repaired Katana 2136 | -9/Storage | Repaired Imp. Aluminum Leg 2411 | -9/Storage | Garrison activated, responded to threat 2443 | -9/Storage | Core integrity fell below 20% 2457 | -9/Storage | Destroyed by Y-45 Defender with Heavy Assault Rifle Last Messages --------------- Acquired 15 matter. K-01 Serf collects debris. U-05 Engineer lays Concrete. Acquired Lgt. Armor Plating. U-05 Engineer lays Concrete. K-01 Serf collects debris. U-05 Engineer builds a Wall. K-01 Serf collects debris. Acquired 30 matter. Y-45 Defender destroyed. Mace follow-up attack on Y-45 Defender. Y-45 Defender suffers critical hit (Smash). K-01 Serf collects debris. Y-45 Defender Lgt. Treads severed. K-01 Serf collects debris. R-06 Scavenger inserts Beam Rifle into recycling unit. Y-45 Defender Lgt. Treads severed. R-06 Scavenger inserts Beam Rifle into recycling unit. Map ----- +----------------------------------------------------+ | ?????????????????????????????????????????????? | | ?????????????????????????????????????????????? | | ?????????????????????????????????????????????? | | ?????????????????????????????????????????????? | | ??????????????????????###????????????????????? | | ????????????????????? ??????????#####?????? | | ????????????????????? ??????????# #?????? | | ???# # """ # # #?# #?????? | | ???# # """ + # #?# #?????? | | ???# # # # #?# ####### | | ???# ########## # #?# | | ???## ##### ##?# ###### | | ????# ############ ############ #????# | | ????# #??????????# #?# # #????# | | ????# ##?????????# #?# # ######+ | | ????# T#??????#### ### """" # # | | ????# ##??##### ## + "" " # #! | | ???##+## #???# # # """ " # # | | ??? ## #???# [# # " """ # #! | | ??? ## #???# ]] !+% + " "" # # ] | | ??? ## ##??# ] [# ### """" # # = | | ??? # #??# # #?# # ####/## | | ??? # #??# "T" # ######+##### ### # | | ??? + T #??########==%* w # | | ??? # #########[#%%[= ### | | ??? # u *k@!%!= ka #?## | | ??? ## ###########Y#######+######+##### | | ??? ## # ##u= # # " | | ??? ## # """ ####= """ # """ # " | | ??? ## # """ #### !! """ # """ # " | | ???##### + """ # "" !! """ # """ # " | | ???????# # #"G ! r # # " | | ???????# # """ # "" "Y" # """""!# | | ???????# # """ #### ! """ # """""!+% | | ???????# < # """ #??# %! # """"" #### | | ???????# # #??##+########! #??? | | ???????################## #??????###"T"####??? | | ????????????????# ! #%#????????####??????? | | ????????????????# *!!#[#################### | | ????????????????# [!*%+!!= | | ????????????????# [*!###################### | | ????????????????# !#????????????????????? | | ????????????????#########????????????????????? | | ?????????????????????????????????????????????? | | | | | | | | | | | | | +----------------------------------------------------+ Best States ------------- Heat Dissipation 28 Energy Generation 12 Energy Capacity 265 Matter Stores 300 Matter Capacity 300 Sight Range 16 Terrain Scan Range 14 Terrain Scan Density 10 Armor Coverage 225 Evasion (%) 55 Melee Accuracy 5 Item Schematics ----------------- None Robot Schematics ------------------ None Fabricated ------------ Nothing Alien Tech Used ----------------- None Achievements -------------- Release The Drones! Challenges ------------ None Game ------ Seed MomentumChainMembrane Manual? 0 Play Time 00:38:25 Cumulative 7.1 hours Start 2024.06.25 @ 07:23:08 End 2024.06.25 @ 07:59:38 Sessions 1 Manual Loads 0 Difficulty Rogue Special Mode None Game No. 12 Rogue 12 Adventurer 0 Explorer 0 Win Type - Total 0 Types 0/0/0/0/0/0/0/0/0 Lore% 9 Gallery% 16 Achievement% 14 Wizard Run 0 Options --------- Layout 1 ASCII 0 Keyboard 0 Movement Mouse Keybinds 0 Fullscreen 2 Font 32/SmallcapsGlow Map View 50x35 Zoom Use 0% Tactical HUD 0 Map Filters NONE Filters NONE Steam 1 RUN: 45b7c6a4-bcdc-4930-9e08-f95ac8e2715f